fUST/lending_fUST_20241201
["ID","MTS","AMOUNT","RATE_DAILY","PERIOD"]
[343919880,1733067046433,-565.51,0.00028219,3]
[343919881,1733067046443,-516.32,0.00028219,3]
[343919882,1733067046455,-500.0,0.00028219,3]
[343919883,1733067046465,-500.0,0.00028219,3]
[343919884,1733067046474,-500.0,0.00028219,3]
[343919885,1733067046484,-500.0,0.00028219,3]
[343919886,1733067046493,-500.0,0.00028219,3]
[343919887,1733067046502,-483.06194721,0.00028219,3]
[343919888,1733067046512,-500.0,0.00028219,3]
[343919889,1733067046522,-500.0,0.00028219,3]
[343919890,1733067046531,-500.0,0.00028219,3]
[343919891,1733067046540,-500.0,0.00028219,3]
[343919892,1733067046549,-500.0,0.00028219,3]
[343919893,1733067046559,-500.0,0.00028219,3]
[343919894,1733067046568,-500.0,0.00028219,3]
[343919895,1733067046578,-616.36,0.00028219,3]
[343919896,1733067046587,-500.0,0.00028219,3]
[343919897,1733067046597,-500.0,0.00028219,3]
[343919898,1733067046606,-500.0,0.00028219,3]
[343919899,1733067046615,-500.0,0.00028219,3]
[343919900,1733067046624,-500.0,0.00028219,3]
[343919901,1733067046633,-500.0,0.00028219,3]
[343919902,1733067046642,-19388.36,0.00028219,3]
[343919903,1733067046652,-500.0,0.00028219,3]
[343919904,1733067046661,-500.0,0.00028219,3]
[343919905,1733067046670,-500.0,0.00028219,3]
[343919906,1733067046680,-163.32640101,0.00028219,3]
[343919907,1733067046695,-336.67359899,0.00028219,3]
[343919908,1733067046707,-500.0,0.00028219,3]
[343919910,1733067046717,-1000.0,0.00028219,2]
[343919912,1733067046726,-500.0,0.00028219,3]
[343919914,1733067046735,-500.0,0.00028219,3]
[343919916,1733067046745,-500.0,0.00028219,3]
[343919917,1733067046754,-500.0,0.00028219,3]
[343919918,1733067046764,-95.73478652,0.00028219,3]
[343919928,1733067329147,158.216301,0.00013973,2]
[343919931,1733067769473,233.88,0.00029258,120]
[343919934,1733067935122,-210.25443516,0.000198,2]
[343919936,1733067938854,158.216301,0.00013973,2]
[343919938,1733068035081,-874.89598279,0.000198,2]
[343919939,1733068035103,-18.9709692,0.0002,2]
[343919940,1733068036104,-150.3,0.0002,2]
[343919941,1733068042131,-999.99986413,0.0002,2]
[343919943,1733068042154,-158.28082215,0.0002395,2]
[343919944,1733068042177,-176.790562,0.0002405,2]
[343919945,1733068042200,-848.2625919,0.00024444,11]
[343919946,1733068042223,-300.0,0.00024998,2]
[343919947,1733068042245,-300.0,0.00024998,2]
[343919948,1733068042274,-9650.0,0.00024998,2]
[343919949,1733068042293,-616.66038145,0.00025,2]
[343919950,1733068042313,-4550.84311821,0.00025,10]
[343919959,1733068173362,-1083.53189085,0.0002,2]
[343919996,1733068232015,-1169.27083333,0.0002,2]
[343919998,1733068232024,-300.0,0.00024999,2]
[343920000,1733068232034,-26.57834105,0.00024999,2]
[343920002,1733068232046,-273.42165895,0.00024999,2]
[343920004,1733068232056,-4652.12834105,0.00025,10]
[343920040,1733068238163,-22389.82055448,0.00025,10]
[343920041,1733068238174,-158.216301,0.00025156,2]
[343920042,1733068238184,-880.68173472,0.00025512,2]
[343920043,1733068238194,-5201.0547656,0.00025555,2]
[343920044,1733068238204,-247.611072,0.00025612,2]
[343920045,1733068238214,-176.790562,0.0002583,2]
[343920046,1733068238224,-880.68173471,0.00026207,2]
[343920047,1733068238234,-2578.4041692,0.00026236,2]
[343920048,1733068238246,-358.01054144,0.00026574,19]
[343920049,1733068238260,-1018.98945856,0.00026574,19]
[343920050,1733068238270,-153.0,0.00026737,2]
[343920051,1733068238281,-880.68173471,0.00026903,2]
[343920052,1733068238291,-300.0,0.00027082,2]
[343920053,1733068238301,-161.372006,0.00027297,2]
[343920054,1733068238311,-391.15476317,0.00027373,2]
[343920055,1733068238321,-170.26847709,0.00027373,2]
[343920056,1733068238331,-188.5350565,0.00027373,2]
[343920057,1733068238340,-500.91501577,0.00027373,2]
[343920058,1733068238350,-216.43313492,0.00027373,2]
[343920059,1733068238359,-500.0,0.00027373,2]
[343920060,1733068238369,-171.86360082,0.00027373,2]
[343920061,1733068238378,-505.72454696,0.00027373,2]
[343920062,1733068238388,-411.10692097,0.00027373,2]
[343920063,1733068238398,-171.576,0.00027387,16]
[343920064,1733068238409,-688.73,0.00027387,3]
[343920065,1733068238418,-1264.91,0.00027387,10]
[343920066,1733068238428,-200.23619633,0.00027396,2]
[343920067,1733068238439,-207.54285627,0.00027396,2]
[343920068,1733068238449,-616.60209065,0.00027396,2]
[343920069,1733068238459,-187.22343044,0.00027396,2]
[343920070,1733068238469,-349.6560111,0.00027397,3]
[343920071,1733068238479,-500.0,0.00027397,3]
[343920072,1733068238489,-500.0,0.00027397,3]
[343920073,1733068238501,-518.04520736,0.00027397,3]
[343920074,1733068238515,-500.0,0.00027397,3]
[343920075,1733068238526,-500.0,0.00027397,3]
[343920076,1733068238537,-500.0,0.00027397,3]
[343920077,1733068238548,-500.0,0.00027397,3]
[343920078,1733068238559,-415.05218331,0.00027397,3]
[343920079,1733068238570,-500.0,0.00027397,3]
[343920080,1733068238581,-500.0,0.00027397,3]
[343920081,1733068238591,-500.0,0.00027397,3]
[343920082,1733068238602,-495.08038886,0.00027397,3]
[343920083,1733068238613,-500.0,0.00027397,3]
[343920084,1733068238624,-500.0,0.00027397,3]
[343920085,1733068238635,-552.55,0.00027397,3]
[343920086,1733068238646,-500.0,0.00027397,3]
[343920087,1733068238657,-500.0,0.00027397,3]
[343920088,1733068238668,-500.0,0.00027397,3]
[343920089,1733068238677,-506.30099311,0.00027397,3]
[343920090,1733068238687,-500.0,0.00027397,3]
[343920091,1733068238697,-500.0,0.00027397,3]
[343920092,1733068238707,-325.0099271,0.00027397,3]
[343920106,1733068240001,-274.87796168,0.00027397,3]
[343920107,1733068240012,-500.0,0.00027397,3]
[343920108,1733068240022,-500.0,0.00027397,3]
[343920109,1733068240031,-500.0,0.00027397,3]
[343920110,1733068240040,-500.0,0.00027397,3]
[343920111,1733068240050,-500.0,0.00027397,3]
[343920112,1733068240059,-500.0,0.00027397,3]
[343920113,1733068240068,-500.0,0.00027397,3]
[343920114,1733068240077,-500.0,0.00027397,3]
[343920115,1733068240086,-500.0,0.00027397,3]
[343920116,1733068240094,-500.0,0.00027397,3]
[343920117,1733068240104,-500.0,0.00027397,3]
[343920118,1733068240114,-500.0,0.00027397,3]
[343920119,1733068240124,-768.27,0.00027397,3]
[343920120,1733068240133,-500.0,0.00027397,3]
[343920121,1733068240142,-500.0,0.00027397,3]
[343920122,1733068240152,-500.0,0.00027397,3]
[343920123,1733068240161,-500.0,0.00027397,3]
[343920124,1733068240170,-500.0,0.00027397,3]
[343920125,1733068240179,-542.26695534,0.00027397,3]
[343920126,1733068240189,-503.45659683,0.00027397,3]
[343920127,1733068240198,-500.0,0.00027397,3]
[343920128,1733068240207,-449.29615364,0.00027397,3]
[343920129,1733068240217,-506.93988193,0.00027397,3]
[343920130,1733068240226,-500.0,0.00027397,3]
[343920131,1733068240236,-500.0,0.00027397,3]
[343920132,1733068240251,-500.0,0.00027397,3]
[343920133,1733068240261,-500.0,0.00027397,3]
[343920134,1733068240271,-500.0,0.00027397,3]
[343920135,1733068240281,-500.0,0.00027397,3]
[343920136,1733068240291,-500.0,0.00027397,3]
[343920137,1733068240301,-500.0,0.00027397,3]
[343920138,1733068240311,-241.43861202,0.00027397,3]
[343920139,1733068240322,-500.0,0.00027397,3]
[343920140,1733068240331,-1000.0,0.00027397,2]
[343920141,1733068240341,-500.0,0.00027397,3]
[343920142,1733068240351,-500.0,0.00027397,3]
[343920143,1733068240360,-151.0,0.00027397,7]
[343920144,1733068240370,-500.0,0.00027397,3]
[343920145,1733068240379,-500.0,0.00027397,3]
[343920146,1733068240388,-732.85,0.00027397,3]
[343920147,1733068240397,-500.0,0.00027397,3]
[343920148,1733068240407,-500.0,0.00027397,3]
[343920149,1733068240415,-500.0,0.00027397,3]
[343920150,1733068240425,-500.0,0.00027397,3]
[343920151,1733068240434,-517.08583083,0.00027397,3]
[343920152,1733068240444,-158.14232629,0.00027397,3]
[343920153,1733068240453,-350.42727762,0.00027397,3]
[343920154,1733068240462,-500.0,0.00027397,3]
[343920155,1733068240472,-500.0,0.00027397,3]
[343920156,1733068240482,-500.0,0.00027397,2]
[343920157,1733068240492,-437.71331852,0.00027397,3]
[343920158,1733068240503,-500.0,0.00027397,3]
[343920159,1733068240514,-500.0,0.00027397,3]
[343920160,1733068240523,-576.13,0.00027397,3]
[343920161,1733068240533,-500.0,0.00027397,3]
[343920162,1733068240542,-500.0,0.00027397,3]
[343920163,1733068240552,-500.0,0.00027397,3]
[343920164,1733068240562,-500.0,0.00027397,3]
[343920165,1733068240571,-500.0,0.00027397,3]
[343920166,1733068240581,-500.0,0.00027397,3]
[343920167,1733068240590,-500.0,0.00027397,3]
[343920168,1733068240599,-500.0,0.00027397,3]
[343920169,1733068240609,-500.0,0.00027397,3]
[343920170,1733068240618,-500.0,0.00027397,3]
[343920171,1733068240628,-500.0,0.00027397,3]
[343920172,1733068240637,-500.0,0.00027397,3]
[343920173,1733068240646,-500.0,0.00027397,3]
[343920174,1733068240656,-500.0,0.00027397,3]
[343920175,1733068240665,-500.0,0.00027397,3]
[343920176,1733068240676,-500.0,0.00027397,3]
[343920177,1733068240686,-500.0,0.00027397,3]
[343920178,1733068240695,-594.81,0.00027397,3]
[343920179,1733068240705,-500.0,0.00027397,3]
[343920180,1733068240714,-500.0,0.00027397,3]
[343920181,1733068240724,-500.0,0.00027397,3]
[343920182,1733068240733,-1000.0,0.00027397,3]
[343920183,1733068240742,-500.0,0.00027397,3]
[343920184,1733068240754,-529.36112031,0.00027397,3]
[343920185,1733068240764,-845.7,0.00027397,3]
[343920186,1733068240773,-500.0,0.00027397,3]
[343920187,1733068240782,-1460.13,0.00027397,3]
[343920188,1733068240792,-255.20223456,0.00027397,3]
[343920189,1733068240802,-500.0,0.00027397,3]
[343920190,1733068240812,-3621.57,0.00027397,3]
[343920191,1733068240821,-500.0,0.00027397,3]
[343920192,1733068240831,-500.0,0.00027397,3]
[343920193,1733068240924,-500.0,0.00027397,3]
[343920194,1733068240936,-500.0,0.00027397,3]
[343920195,1733068240946,-566.35648593,0.00027397,3]
[343920196,1733068240956,-500.0,0.00027397,3]
[343920197,1733068240965,-500.0,0.00027397,3]
[343920198,1733068240974,-500.0,0.00027397,3]
[343920199,1733068240984,-500.0,0.00027397,3]
[343920200,1733068240993,-500.0,0.00027397,3]
[343920201,1733068241004,-500.0,0.00027397,3]
[343920202,1733068241013,-506.37326759,0.00027397,3]
[343920203,1733068241022,-500.0,0.00027397,3]
[343920204,1733068241031,-500.0,0.00027397,3]
[343920205,1733068241041,-339.48794956,0.00027397,3]
[343920206,1733068241050,-500.0,0.00027397,3]
[343920207,1733068241060,-500.0,0.00027397,3]
[343920208,1733068241070,-699.92,0.00027397,3]
[343920209,1733068241079,-500.0,0.00027397,3]
[343920210,1733068241089,-579.62,0.00027397,3]
[343920211,1733068241099,-554.66,0.00027397,3]
[343920212,1733068241109,-500.0,0.00027397,3]
[343920213,1733068241119,-502.44387056,0.00027397,3]
[343920214,1733068241129,-500.0,0.00027397,3]
[343920215,1733068241139,-500.0,0.00027397,3]
[343920216,1733068241150,-500.0,0.00027397,3]
[343920217,1733068241160,-500.0,0.00027397,3]
[343920218,1733068241171,-500.0,0.00027397,3]
[343920219,1733068241181,-517.21194976,0.00027397,3]
[343920220,1733068241191,-500.0,0.00027397,3]
[343920221,1733068241202,-565.27,0.00027397,3]
[343920222,1733068241212,-1169.27083333,0.00027397,3]
[343920223,1733068241222,-1169.27083333,0.00027397,3]
[343920224,1733068241232,-1169.27083333,0.00027397,3]
[343920225,1733068241244,-500.0,0.00027397,3]
[343920226,1733068241255,-500.0,0.00027397,3]
[343920227,1733068241264,-500.0,0.00027397,3]
[343920228,1733068241274,-500.0,0.00027397,3]
[343920229,1733068241283,-500.0,0.00027397,3]
[343920230,1733068241294,-500.0,0.00027397,3]
[343920231,1733068241304,-500.0,0.00027397,3]
[343920232,1733068241313,-15355.54,0.00027397,3]
[343920233,1733068241323,-10103.76770704,0.00027397,3]
[343920234,1733068241339,-6115.70229296,0.00027397,3]
[343920235,1733068241349,-500.0,0.00027397,3]
[343920236,1733068241359,-500.0,0.00027397,3]
[343920237,1733068241369,-500.0,0.00027397,3]
[343920238,1733068241379,-500.0,0.00027397,3]
[343920239,1733068241389,-500.0,0.00027397,3]
[343920240,1733068241398,-500.0,0.00027397,3]
[343920241,1733068241408,-500.0,0.00027397,3]
[343920242,1733068241418,-500.0,0.00027397,3]
[343920243,1733068241428,-500.0,0.00027397,3]
[343920244,1733068241438,-500.0,0.00027397,3]
[343920245,1733068241447,-500.0,0.00027397,3]
[343920246,1733068241459,-500.0,0.00027397,3]
[343920247,1733068241469,-500.0,0.00027397,3]
[343920248,1733068241478,-551.2839757,0.00027397,3]
[343920249,1733068241488,-500.0,0.00027397,3]
[343920250,1733068241497,-500.0,0.00027397,3]
[343920251,1733068241508,-500.0,0.00027397,3]
[343920252,1733068241518,-500.0,0.00027397,3]
[343920253,1733068241527,-500.0,0.00027397,3]
[343920254,1733068241537,-500.0,0.00027397,3]
[343920255,1733068241546,-500.0,0.00027397,3]
[343920256,1733068241556,-260.86581305,0.00027397,3]
[343920257,1733068241566,-500.0,0.00027397,3]
[343920258,1733068241576,-500.0,0.00027397,3]
[343920259,1733068241586,-500.0,0.00027397,3]
[343920260,1733068241596,-1040.6,0.00027397,3]
[343920261,1733068241606,-500.0,0.00027397,3]
[343920262,1733068241616,-2488.21,0.00027397,3]
[343920263,1733068241626,-500.0,0.00027397,3]
[343920264,1733068241636,-500.0,0.00027397,3]
[343920265,1733068241645,-500.0,0.00027397,3]
[343920266,1733068241655,-500.0,0.00027397,3]
[343920267,1733068241665,-500.0,0.00027397,3]
[343920268,1733068241674,-500.0,0.00027397,3]
[343920269,1733068241684,-500.0,0.00027397,3]
[343920270,1733068241694,-500.0,0.00027397,3]
[343920271,1733068241705,-500.0,0.00027397,3]
[343920272,1733068241715,-500.0,0.00027397,3]
[343920273,1733068241724,-500.0,0.00027397,3]
[343920274,1733068241733,-500.0,0.00027397,3]
[343920275,1733068241743,-500.0,0.00027397,3]
[343920276,1733068241753,-500.0,0.00027397,3]
[343920277,1733068241765,-500.0,0.00027397,3]
[343920278,1733068241775,-500.0,0.00027397,3]
[343920279,1733068241785,-508.67442566,0.00027397,3]
[343920280,1733068241795,-500.0,0.00027397,3]
[343920281,1733068241807,-651.83,0.00027397,3]
[343920282,1733068241823,-643.12352486,0.00027397,3]
[343920283,1733068241837,-500.0,0.00027397,3]
[343920284,1733068241853,-500.0,0.00027397,3]
[343920285,1733068241865,-1055.7,0.00027397,3]
[343920286,1733068241877,-1366.59,0.00027397,3]
[343920287,1733068241891,-500.0,0.00027397,3]
[343920288,1733068241905,-500.0,0.00027397,3]
[343920289,1733068241918,-500.0,0.00027397,3]
[343920290,1733068241931,-166.526446,0.00027397,7]
[343920291,1733068241944,-6292.63,0.00027397,3]
[343920292,1733068241958,-536.76218759,0.00027397,3]
[343920293,1733068241973,-4978.598404,0.00027397,3]
[343920306,1733068243319,-500.0,0.00027396,2]
[343920309,1733068243332,-500.0,0.00027396,2]
[343920310,1733068243343,-500.0,0.00027396,2]
[343920312,1733068243356,-614.31901101,0.00027396,2]
[343920313,1733068243367,-500.0,0.00027396,2]
[343920314,1733068243379,-282.52611817,0.00027396,2]
[343920315,1733068243390,-476.32346829,0.00027396,2]
[343920316,1733068243401,-500.0,0.00027396,2]
[343920317,1733068243413,-500.0,0.00027396,2]
[343920318,1733068243424,-508.67186397,0.00027396,2]
[343920319,1733068243436,-144.42679389,0.00027396,2]
[343920320,1733068243450,-355.57320611,0.00027396,2]
[343920321,1733068243462,-500.0,0.00027396,2]
[343920322,1733068243474,-500.0,0.00027396,2]
[343920323,1733068243486,-500.0,0.00027396,2]
[343920324,1733068243498,-150.92893831,0.00027396,2]
[343920325,1733068243517,-349.07106169,0.00027396,2]
[343920326,1733068243539,-500.0,0.00027396,2]
[343920328,1733068243551,-500.0,0.00027396,2]
[343920329,1733068243562,-500.0,0.00027396,2]
[343920330,1733068243573,-500.0,0.00027396,2]
[343920331,1733068243584,-500.0,0.00027396,2]
[343920332,1733068243596,-121.39083348,0.00027396,2]
[343920333,1733068243610,-378.60916652,0.00027396,2]
[343920334,1733068243623,-500.0,0.00027396,2]
[343920335,1733068243635,-181.9978736,0.00027396,2]
[343920336,1733068243646,-500.0,0.00027396,2]
[343920337,1733068243658,-500.0,0.00027396,2]
[343920338,1733068243668,-500.0,0.00027396,2]
[343920339,1733068243678,-500.0,0.00027396,2]
[343920340,1733068243688,-500.0,0.00027396,2]
[343920341,1733068243699,-2433.321596,0.00027397,3]
[343920342,1733068243711,-500.0,0.00027397,3]
[343920343,1733068243724,-500.0,0.00027397,3]
[343920344,1733068243735,-500.0,0.00027397,3]
[343920345,1733068243745,-612.64441132,0.00027397,3]
[343920346,1733068243868,-500.0,0.00027397,3]
[343920347,1733068243884,-500.0,0.00027397,3]
[343920348,1733068243894,-500.0,0.00027397,3]
[343920349,1733068243904,-500.0,0.00027397,3]
[343920350,1733068243915,-590.24,0.00027397,3]
[343920351,1733068243924,-500.0,0.00027397,3]
[343920352,1733068243934,-500.0,0.00027397,3]
[343920353,1733068243944,-500.0,0.00027397,3]
[343920354,1733068243954,-500.0,0.00027397,3]
[343920355,1733068243964,-500.0,0.00027397,3]
[343920356,1733068243973,-500.0,0.00027397,3]
[343920357,1733068243983,-500.0,0.00027397,3]
[343920358,1733068243993,-500.0,0.00027397,3]
[343920359,1733068244002,-500.0,0.00027397,3]
[343920360,1733068244013,-500.0,0.00027397,3]
[343920361,1733068244023,-500.0,0.00027397,3]
[343920362,1733068244033,-500.0,0.00027397,3]
[343920363,1733068244042,-500.0,0.00027397,3]
[343920364,1733068244052,-500.0,0.00027397,3]
[343920365,1733068244062,-280.11161878,0.00027397,3]
[343920366,1733068244078,-1237.68838122,0.00027397,3]
[343920367,1733068244087,-500.0,0.00027397,3]
[343920368,1733068244097,-500.0,0.00027397,3]
[343920369,1733068244107,-500.0,0.00027397,3]
[343920370,1733068244117,-500.0,0.00027397,3]
[343920371,1733068244127,-500.0,0.00027397,3]
[343920372,1733068244136,-500.0,0.00027397,3]
[343920373,1733068244146,-500.0,0.00027397,3]
[343920374,1733068244155,-314.64935498,0.00027397,3]
[343920375,1733068244167,-185.35064502,0.00027397,3]
[343920376,1733068244177,-500.0,0.00027397,3]
[343920377,1733068244186,-467.17888789,0.00027397,3]
[343920381,1733068245820,-32.82111211,0.00027397,3]
[343920383,1733068245830,-500.0,0.00027397,3]
[343920385,1733068245840,-500.0,0.00027397,3]
[343920387,1733068245850,-594.22688346,0.00027397,3]
[343920388,1733068245859,-1188.54,0.00027397,3]
[343920389,1733068245869,-500.0,0.00027397,3]
[343920390,1733068245879,-500.0,0.00027397,3]
[343920392,1733068245888,-293.75595709,0.00027397,3]
[343920393,1733068245898,-500.0,0.00027397,3]
[343920394,1733068245908,-1649.22,0.00027397,3]
[343920395,1733068245918,-500.0,0.00027397,3]
[343920396,1733068245927,-500.0,0.00027397,3]
[343920397,1733068245937,-500.0,0.00027397,3]
[343920398,1733068245949,-500.0,0.00027397,3]
[343920399,1733068245960,-500.0,0.00027397,3]
[343920400,1733068245970,-554.20741979,0.00027397,3]
[343920401,1733068245980,-530.83082706,0.00027397,3]
[343920403,1733068245990,-500.0,0.00027397,3]
[343920404,1733068246000,-1194.25,0.00027397,3]
[343920405,1733068246011,-500.0,0.00027397,3]
[343920406,1733068246021,-500.0,0.00027397,3]
[343920407,1733068246031,-500.0,0.00027397,3]
[343920409,1733068246040,-500.0,0.00027397,3]
[343920411,1733068246050,-500.0,0.00027397,3]
[343920413,1733068246059,-500.0,0.00027397,3]
[343920414,1733068246069,-500.0,0.00027397,3]
[343920416,1733068246078,-500.0,0.00027397,3]
[343920418,1733068246087,-663.18,0.00027397,3]
[343920420,1733068246097,-621.85391798,0.00027397,3]
[343920421,1733068246107,-661.34,0.00027397,3]
[343920422,1733068246116,-500.0,0.00027397,3]
[343920423,1733068246125,-500.0,0.00027397,3]
[343920424,1733068246135,-500.0,0.00027397,3]
[343920425,1733068246144,-500.0,0.00027397,3]
[343920426,1733068246154,-1169.27083333,0.00027397,3]
[343920427,1733068246164,-1169.27083333,0.00027397,3]
[343920428,1733068246173,-1169.27083333,0.00027397,3]
[343920429,1733068246182,-176.302448,0.00027422,2]
[343920430,1733068246192,-300.0,0.00027499,2]
[343920431,1733068246201,-161.37200598,0.00027503,2]
[343920432,1733068246210,-880.68173471,0.00027598,2]
[343920433,1733068246219,-176.790562,0.0002761,2]
[343920434,1733068246229,-2208.26,0.00027661,10]
[343920435,1733068246238,-500.0,0.0002767,3]
[343920436,1733068246251,-500.0,0.0002767,3]
[343920437,1733068246265,-390.88588437,0.0002767,3]
[343920438,1733068246277,-500.0,0.00027671,3]
[343920439,1733068246287,-500.0,0.00027671,3]
[343920440,1733068246296,-500.0,0.00027671,3]
[343920441,1733068246307,-500.0,0.00027671,3]
[343920442,1733068246318,-552.55,0.00027671,3]
[343920443,1733068246332,-500.0,0.00027671,3]
[343920444,1733068246342,-500.0,0.00027671,3]
[343920445,1733068246352,-500.0,0.00027671,3]
[343920446,1733068246362,-500.0,0.00027671,3]
[343920447,1733068246372,-500.0,0.00027671,3]
[343920448,1733068246381,-500.0,0.00027671,3]
[343920449,1733068246390,-500.0,0.00027671,3]
[343920450,1733068246401,-510.68818668,0.00027671,3]
[343920451,1733068246411,-511.79526926,0.00027671,3]
[343920452,1733068246420,-500.0,0.00027671,3]
[343920453,1733068246430,-768.27,0.00027671,3]
[343920454,1733068246439,-500.0,0.00027671,3]
[343920455,1733068246450,-500.0,0.00027671,3]
[343920456,1733068246462,-500.0,0.00027671,3]
[343920457,1733068246473,-500.0,0.00027671,3]
[343920458,1733068246483,-500.0,0.00027671,3]
[343920459,1733068246495,-500.0,0.00027671,3]
[343920460,1733068246505,-500.0,0.00027671,3]
[343920461,1733068246519,-500.0,0.00027671,3]
[343920462,1733068246530,-501.89775724,0.00027671,3]
[343920463,1733068246540,-500.0,0.00027671,3]
[343920464,1733068246551,-500.0,0.00027671,3]
[343920465,1733068246562,-500.0,0.00027671,3]
[343920466,1733068246571,-500.0,0.00027671,3]
[343920467,1733068246581,-500.0,0.00027671,3]
[343920468,1733068246592,-500.0,0.00027671,3]
[343920469,1733068246602,-1000.0,0.00027671,2]
[343920470,1733068246612,-500.0,0.00027671,3]
[343920471,1733068246621,-500.0,0.00027671,3]
[343920472,1733068246630,-151.0,0.00027671,7]
[343920473,1733068246640,-505.93517766,0.00027671,3]
[343920474,1733068246650,-539.58589014,0.00027671,3]
[343920475,1733068246660,-732.85,0.00027671,3]
[343920476,1733068246669,-500.0,0.00027671,3]
[343920477,1733068246679,-588.98,0.00027671,3]
[343920478,1733068246689,-500.0,0.00027671,3]
[343920479,1733068246699,-500.0,0.00027671,3]
[343920480,1733068246708,-500.0,0.00027671,3]
[343920481,1733068246718,-500.0,0.00027671,3]
[343920482,1733068246728,-314.73083304,0.00027671,3]
[343920483,1733068246738,-500.0,0.00027671,3]
[343920484,1733068246750,-576.13,0.00027671,3]
[343920485,1733068246761,-500.0,0.00027671,3]
[343920486,1733068246771,-500.0,0.00027671,3]
[343920487,1733068246780,-500.0,0.00027671,3]
[343920488,1733068246790,-500.0,0.00027671,3]
[343920489,1733068246800,-519.48509105,0.00027671,3]
[343920490,1733068246810,-500.0,0.00027671,3]
[343920491,1733068246820,-583.90010964,0.00027671,3]
[343920492,1733068246830,-501.60935723,0.00027671,3]
[343920493,1733068246839,-500.0,0.00027671,3]
[343920494,1733068246850,-500.0,0.00027671,3]
[343920495,1733068246859,-500.0,0.00027671,3]
[343920496,1733068246868,-500.0,0.00027671,3]
[343920497,1733068246878,-518.71842384,0.00027671,3]
[343920498,1733068246887,-500.0,0.00027671,3]
[343920499,1733068246898,-550.71366695,0.00027671,3]
[343920500,1733068246907,-594.81,0.00027671,3]
[343920501,1733068246918,-500.0,0.00027671,3]
[343920502,1733068246928,-500.0,0.00027671,3]
[343920503,1733068246937,-1006.92553834,0.00027671,3]
[343920504,1733068246947,-500.0,0.00027671,3]
[343920505,1733068246956,-845.7,0.00027671,3]
[343920506,1733068246965,-1460.13,0.00027671,3]
[343920507,1733068246974,-3621.57,0.00027671,3]
[343920508,1733068246984,-500.0,0.00027671,3]
[343920509,1733068246994,-542.74444538,0.00027671,3]
[343920510,1733068247004,-500.0,0.00027671,3]
[343920511,1733068247016,-500.0,0.00027671,3]
[343920512,1733068247025,-368.14305671,0.00027671,3]
[343920513,1733068247035,-500.0,0.00027671,3]
[343920514,1733068247044,-234.99878533,0.00027671,3]
[343920515,1733068247054,-500.0,0.00027671,3]
[343920516,1733068247063,-500.0,0.00027671,3]
[343920517,1733068247072,-500.0,0.00027671,3]
[343920518,1733068247082,-500.0,0.00027671,3]
[343920519,1733068247091,-699.92,0.00027671,3]
[343920520,1733068247101,-579.62,0.00027671,3]
[343920521,1733068247110,-554.66,0.00027671,3]
[343920522,1733068247120,-500.0,0.00027671,3]
[343920523,1733068247130,-500.0,0.00027671,3]
[343920524,1733068247139,-500.0,0.00027671,3]
[343920525,1733068247148,-500.0,0.00027671,3]